[Event "FIDE CB Open 2022"]
[Site "Ceske Budejovice"]
[Date "2022.07.04"]
[Round "4.19"]
[White "Bartos, Jan"]
[Black "Zauner, Christoph"]
[Result "1-0"]
[ECO "A81"]
[WhiteElo "2142"]
[BlackElo "1963"]
[Annotator "NA RC"]
[PlyCount "65"]
[EventDate "2022.07.01"]
[EventType "swiss"]
[EventCountry "CZE"]
[SourceTitle "playchess.com"]
[Source "ChessBase"]
[SourceQuality "1"]
[TimeControl "40/5400+30:1800+30"]

1. d4 {[%emt 0:00:05]} f5 {[%emt 0:00:21]} 2. g3 {[%emt 0:00:07]} Nf6 {[%emt 0:00:11]} 3. Bg2 {[%emt 0:00:06]} g6 {[%emt 0:00:32]} 4. c3 {[%emt 0:01:03]} Bg7 {[%emt 0:05:05]} 5. Nd2 {[%emt 0:01:21]} d5 {[%emt 0:01:39]} 6. Ngf3 {[%emt 0:01:09]} O-O {[%emt 0:01:37]} 7. O-O {[%emt 0:00:11]} Nc6 {[%emt 0:05:25]} 8. Qb3 {[%emt 0:01:35]} Qd6 {[%emt 0:07:50]} 9. Re1 {[%emt 0:08:25]} Kh8 {[%emt 0:14:51]} 10. Nf1 {[%emt 0:04:20]} e5 {[%emt 0:06:46]} 11. dxe5 {[%emt 0:00:14]} Nxe5 {[%emt 0:00:10]} 12. Nxe5 {[%emt 0:00:12]} Qxe5 {[%emt 0:00:16]} 13. Bf4 {[%emt 0:00:25]} Qe7 {[%emt 0:00:29]} 14. Bxd5 {[%emt 0:02:18]} Nxd5 {[%emt 0:08:22]} 15. Qxd5 {[%emt 0:02:27]} g5 {[%emt 0:00:25]} 16. Be3 {[%emt 0:01:46]} Be6 {[%emt 0:06:58]} 17. Qc5 {[%emt 0:00:28]} Qf7 {[%emt 0:00:53]} 18. Bxg5 {[%emt 0:01:02]} b6 {[%emt 0:06:11]} 19. Qe7 {[%emt 0:07:38]} Qg6 {[%emt 0:00:48]} 20. Bf4 {[%emt 0:01:43]} c5 {[%emt 0:03:33]} 21. Nd2 {[%emt 0:02:32]} Rae8 {[%emt 0:15:12]} 22. Qg5 {[%emt 0:13:06]} Qf7 {[%emt 0:00:42]} 23. Bd6 {[%emt 0:02:26]} Rg8 {[%emt 0:01:10]} 24. Qf4 {[%emt 0:00:41]} Bf6 {[%emt 0:07:06]} 25. e4 {[%emt 0:10:30]} Rg4 {[%emt 0:00:59]} 26. Qf3 {[%emt 0:00:12]} f4 {[%emt 0:03:41]} 27. Bxf4 {[%emt 0:00:47]} Reg8 {[%emt 0:00:59]} 28. Bd6 {[%emt 0:12:37]} Qg6 {[%emt 0:00:50]} 29. e5 {[%emt 0:00:37]} Bg5 {[%emt 0:01:07]} 30. Ne4 {[%emt 0:01:20]} Bf4 {[%emt 0:00:27]} 31. Nf6 {[%emt 0:00:33]} h5 {[%emt 0:00:50]} 32. Nxg4 {[%emt 0:01:32]} Bd2 {[%emt 0:00:27]} 33. Qf6+ {[%emt 0:00:41]} 1-0

[Event "FIDE CB Open 2022"]
[Site "Ceske Budejovice"]
[Date "2022.07.04"]
[Round "4.20"]
[White "Zima, Jan"]
[Black "Blumel, Otto"]
[Result "1-0"]
[ECO "C29"]
[WhiteElo "2134"]
[BlackElo "1855"]
[Annotator "NA RC"]
[PlyCount "47"]
[EventDate "2022.07.01"]
[EventType "swiss"]
[EventCountry "CZE"]
[SourceTitle "playchess.com"]
[Source "ChessBase"]
[SourceQuality "1"]
[TimeControl "40/5400+30:1800+30"]

1. e4 {[%emt 0:00:06]} e5 {[%emt 0:01:23]} 2. Nc3 {[%emt 0:01:06]} Nf6 {[%emt 0:00:48]} 3. f4 {[%emt 0:00:09]} d5 {[%emt 0:03:54]} 4. fxe5 {[%emt 0:00:38]} Nxe4 {[%emt 0:00:56]} 5. Qf3 {[%emt 0:00:07]} Nxc3 {[%emt 0:05:54]} 6. dxc3 {[%emt 0:00:06]} Be7 {[%emt 0:00:46]} 7. Bf4 {[%emt 0:00:30]} c6 {[%emt 0:04:43]} 8. O-O-O {[%emt 0:01:46]} Qa5 {[%emt 0:00:24]} 9. Kb1 {[%emt 0:00:22]} Be6 {[%emt 0:00:18]} 10. Qg3 {[%emt 0:02:03]} Nd7 {[%emt 0:04:29]} 11. Qxg7 {[%emt 0:23:34]} O-O-O {[%emt 0:00:56]} 12. Qg3 {[%emt 0:00:04]} Rhg8 {[%emt 0:01:32]} 13. Qf2 {[%emt 0:04:27]} Nc5 {[%emt 0:01:48]} 14. Nf3 {[%emt 0:11:02]} d4 {[%emt 0:12:38]} 15. c4 {[%emt 0:01:04]} Ne4 {[%emt 0:04:40]} 16. Qe1 {[%emt 0:04:32]} Nc3+ {[%emt 0:02:05]} 17. bxc3 {[%emt 0:06:44]} dxc3 {[%emt 0:00:19]} 18. Ka1 {[%emt 0:07:41]} Rxd1+ {[%emt 0:02:54]} 19. Qxd1 {[%emt 0:00:58]} Rd8 {[%emt 0:00:07]} 20. Bd3 {[%emt 0:09:01]} Ba3 {[%emt 0:16:55]} 21. Bc1 {[%emt 0:00:44]} Be7 {[%emt 0:20:48]} 22. Qe2 {[%emt 0:03:00]} b5 {[%emt 0:01:23]} 23. Qe4 {[%emt 0:06:09]} Kc7 {[%emt 0:02:31]} 24. Nd4 {[%emt 0:02:06]} 1-0

[Event "FIDE CB Open 2022"]
[Site "Ceske Budejovice"]
[Date "2022.07.04"]
[Round "4.22"]
[White "Hofstadler, Mario"]
[Black "Slaby, Matej"]
[Result "1/2-1/2"]
[ECO "E04"]
[WhiteElo "2123"]
[BlackElo "1796"]
[Annotator "NA RC"]
[PlyCount "52"]
[EventDate "2022.07.01"]
[EventType "swiss"]
[EventCountry "CZE"]
[SourceTitle "playchess.com"]
[Source "ChessBase"]
[SourceQuality "1"]
[TimeControl "40/5400+30:1800+30"]

1. d4 {[%emt 0:00:30]} Nf6 {[%emt 0:00:07]} 2. Nf3 {[%emt 0:00:25]} e6 {[%emt 0:00:24]} 3. c4 {[%emt 0:02:38]} d5 {[%emt 0:00:07]} 4. g3 {[%emt 0:00:08]} dxc4 {[%emt 0:00:48]} 5. Bg2 {[%emt 0:05:04]} c5 {[%emt 0:01:11]} 6. O-O {[%emt 0:06:46]} Nc6 {[%emt 0:05:48]} 7. dxc5 {[%emt 0:05:28]} Qxd1 {[%emt 0:00:54]} 8. Rxd1 {[%emt 0:00:08]} Bxc5 {[%emt 0:00:15]} 9. Nbd2 {[%emt 0:02:19]} c3 {[%emt 0:06:03]} 10. bxc3 {[%emt 0:00:23]} O-O {[%emt 0:00:39]} 11. Nb3 {[%emt 0:00:33]} Be7 {[%emt 0:02:09]} 12. Bf4 {[%emt 0:19:56]} Nd5 {[%emt 0:02:54]} 13. Rac1 {[%emt 0:13:39]} Bf6 {[%emt 0:16:09]} 14. Nfd4 {[%emt 0:03:26]} Nxd4 {[%emt 0:06:47]} 15. cxd4 {[%emt 0:03:16]} b6 {[%emt 0:00:54]} 16. Bd2 {[%emt 0:03:16]} Be7 {[%emt 0:02:44]} 17. e4 {[%emt 0:03:07]} Nf6 {[%emt 0:03:14]} 18. Bg5 {[%emt 0:02:34]} Ba3 {[%emt 0:05:44]} 19. Rc7 {[%emt 0:06:13]} Ne8 {[%emt 0:02:03]} 20. Rc2 {[%emt 0:01:08]} Ba6 {[%emt 0:03:31]} 21. Bc1 {[%emt 0:01:38]} Be7 {[%emt 0:01:22]} 22. Bb2 {[%emt 0:00:31]} Nf6 {[%emt 0:02:37]} 23. d5 {[%emt 0:03:11]} exd5 {[%emt 0:03:42]} 24. e5 {[%emt 0:00:33]} Ne8 {[%emt 0:03:05]} 25. Rxd5 {[%emt 0:01:05]} Rc8 {[%emt 0:00:27]} 26. Rcd2 {[%emt 0:01:13]} Bb4 {[%emt 0:02:45]} 1/2-1/2

[Event "FIDE CB Open 2022"]
[Site "Ceske Budejovice"]
[Date "2022.07.04"]
[Round "4.23"]
[White "Havelka, Josef"]
[Black "Kosut, Tomas"]
[Result "1-0"]
[ECO "B68"]
[WhiteElo "2396"]
[BlackElo "1820"]
[Annotator "RC"]
[PlyCount "89"]
[EventDate "2022.07.01"]
[EventType "swiss"]
[EventCountry "CZE"]
[SourceTitle "playchess.com"]
[Source "ChessBase"]
[SourceQuality "1"]
[TimeControl "40/5400+30:1800+30"]

1. e4 {[%emt 0:00:07]} c5 {[%emt 0:00:08]} 2. Nf3 {[%emt 0:00:05]} d6 {[%emt 0:00:13]} 3. d4 {[%emt 0:00:06]} cxd4 {[%emt 0:00:06]} 4. Nxd4 {[%emt 0:00:02]} Nf6 {[%emt 0:00:18]} 5. Nc3 {[%emt 0:00:07]} Nc6 {[%emt 0:00:29]} 6. Bg5 {[%emt 0:06:53]} e6 {[%emt 0:00:19]} 7. f4 {[%emt 0:01:30]} Be7 {[%emt 0:02:40]} 8. Qd2 {[%emt 0:03:44]} a6 {[%emt 0:05:05]} 9. O-O-O {[%emt 0:01:36]} Bd7 {[%emt 0:02:07]} 10. Nf3 {[%emt 0:09:52]} b5 {[%emt 0:07:30]} 11. e5 {[%emt 0:01:21]} b4 {[%emt 0:09:09]} 12. exf6 {[%emt 0:00:09]} bxc3 {[%emt 0:00:38]} 13. Qxc3 {[%emt 0:00:12]} gxf6 {[%emt 0:00:42]} 14. Bh4 {[%emt 0:03:17]} d5 {[%emt 0:02:48]} 15. Kb1 {[%emt 0:03:01]} Rg8 {[%emt 0:07:30]} 16. a3 {[%emt 0:25:46]} Rb8 {[%emt 0:24:38]} 17. g3 {[%emt 0:15:42]} Na5 {[%emt 0:14:32]} 18. Bxa6 {[%emt 0:09:08]} Qb6 {[%emt 0:01:33]} 19. Bd3 {[%emt 0:01:04]} Rc8 {[%emt 0:11:43]} 20. Qd4 {[%emt 0:01:44]} Bc5 {[%emt 0:02:53]} 21. Qxf6 {[%emt 0:00:07]} Bxa3 {[%emt 0:00:36]} 22. Ka2 {[%emt 0:01:30]} Bc5 {[%emt 0:02:29]} 23. Ra1 {[%emt 0:08:22]} Nc6 {[%emt 0:02:24]} 24. Kb1 {[%emt 0:02:16]} Be7 {[%emt 0:00:37]} 25. Qc3 {[%emt 0:02:28]} Bb4 {[%emt 0:01:01]} 26. Qb3 {[%emt 0:01:57]} Na5 {[%emt 0:00:31]} 27. Qa2 {[%emt 0:00:31]} Rb8 {[%emt 0:00:43]} 28. Bf6 {[%emt 0:00:31]} Bc6 {[%emt 0:00:32]} 29. Bd4 {[%emt 0:00:45]} Qb7 {[%emt 0:00:29]} 30. Ne5 {[%emt 0:00:33]} Nc4 {[%emt 0:00:25]} 31. Bxc4 {[%emt 0:00:54]} dxc4 {[%emt 0:00:02]} 32. Nxc6 {[%emt 0:00:10]} Qxc6 {[%emt 0:00:31]} 33. Qa4 {[%emt 0:00:27]} Qxa4 {[%emt 0:00:41]} 34. Rxa4 {[%emt 0:00:02]} c3 {[%emt 0:00:33]} 35. b3 {[%emt 0:01:09]} Kd7 {[%emt 0:00:31]} 36. Rd1 {[%emt 0:00:21]} Kc6 {[%emt 0:00:19]} 37. Be5 {[%emt 0:00:26]} Rb5 {[%emt 0:00:56]} 38. Rd4 {[%emt 0:00:42]} Bc5 {[%emt 0:00:34]} 39. Rdc4 {[%emt 0:00:34]} Kb6 {[%emt 0:00:29]} 40. Bxc3 {[%emt 0:00:36]} Rd8 {[%emt 0:00:26]} 41. Kb2 {[%emt 0:30:30]} Bg1 {[%emt 0:01:12]} 42. Be5 {[%emt 0:00:00]} Rc5 {[%emt 0:05:14]} 43. Rcb4+ {[%emt 0:00:00]} Rb5 {[%emt 0:01:11]} 44. Bc7+ {[%emt 0:00:00]} Kxc7 {[%emt 0:00:46]} 45. Rxb5 {[%emt 0:00:00]} 1-0

[Event "FIDE CB Open 2022"]
[Site "Ceske Budejovice"]
[Date "2022.07.04"]
[Round "4.24"]
[White "Dotzer, Lukas"]
[Black "Nejdl, Eduard"]
[Result "1-0"]
[ECO "C45"]
[WhiteElo "2269"]
[BlackElo "1951"]
[Annotator "RC"]
[PlyCount "71"]
[EventDate "2022.07.01"]
[EventType "swiss"]
[EventCountry "CZE"]
[SourceTitle "playchess.com"]
[Source "ChessBase"]
[SourceQuality "1"]
[TimeControl "40/5400+30:1800+30"]

1. e4 {[%emt 0:00:05]} e5 {[%emt 0:00:07]} 2. Nf3 {[%emt 0:00:03]} Nc6 {[%emt 0:00:07]} 3. d4 {[%emt 0:00:13]} exd4 {[%emt 0:00:27]} 4. Nxd4 {[%emt 0:00:11]} Nf6 {[%emt 0:00:10]} 5. Nxc6 {[%emt 0:00:09]} bxc6 {[%emt 0:00:08]} 6. Qe2 {[%emt 0:02:45]} Qe7 {[%emt 0:01:45]} 7. Nc3 {[%emt 0:05:05]} a5 {[%emt 0:07:07]} 8. Bg5 {[%emt 0:09:44]} Qe6 {[%emt 0:04:27]} 9. a3 {[%emt 0:12:08]} Bc5 {[%emt 0:10:57]} 10. g3 {[%emt 0:16:53]} Bd4 {[%emt 0:09:54]} 11. Bg2 {[%emt 0:06:20]} Ba6 {[%emt 0:05:13]} 12. Qf3 {[%emt 0:04:23]} Ng4 {[%emt 0:04:14]} 13. O-O-O {[%emt 0:02:42]} Ne5 {[%emt 0:04:17]} 14. Qf5 {[%emt 0:10:06]} Qxf5 {[%emt 0:19:13]} 15. exf5 {[%emt 0:00:07]} Bxf2 {[%emt 0:00:08]} 16. Ne4 {[%emt 0:04:13]} Bb6 {[%emt 0:08:10]} 17. f6 {[%emt 0:14:10]} g6 {[%emt 0:00:52]} 18. Bf4 {[%emt 0:00:12]} Nc4 {[%emt 0:04:22]} 19. Rhe1 {[%emt 0:04:24]} O-O-O {[%emt 0:02:03]} 20. Ng5 {[%emt 0:00:05]} Rde8 {[%emt 0:05:22]} 21. Nxf7 {[%emt 0:02:35]} Rxe1 {[%emt 0:00:30]} 22. Nxh8 {[%emt 0:02:24]} Re8 {[%emt 0:02:44]} 23. Nf7 {[%emt 0:01:34]} Rf8 {[%emt 0:03:42]} 24. Ne5 {[%emt 0:00:49]} Nxe5 {[%emt 0:03:29]} 25. Bxe5 {[%emt 0:00:06]} Be3+ {[%emt 0:00:17]} 26. Kb1 {[%emt 0:00:05]} d6 {[%emt 0:00:35]} 27. Bc3 {[%emt 0:01:27]} Bg5 {[%emt 0:00:56]} 28. Bxa5 {[%emt 0:00:50]} Rxf6 {[%emt 0:00:33]} 29. Bxc6 {[%emt 0:00:28]} Rf2 {[%emt 0:00:31]} 30. Re1 {[%emt 0:00:21]} Be2 {[%emt 0:01:57]} 31. h4 {[%emt 0:00:30]} Be3 {[%emt 0:00:41]} 32. a4 {[%emt 0:00:37]} Bd4 {[%emt 0:00:32]} 33. Bd2 {[%emt 0:00:41]} Kb8 {[%emt 0:00:21]} 34. a5 {[%emt 0:00:11]} Ka7 {[%emt 0:00:29]} 35. c3 {[%emt 0:00:14]} Be5 {[%emt 0:00:15]} 36. Be3+ {[%emt 0:00:05]} 1-0

[Event "FIDE CB Open 2022"]
[Site "Ceske Budejovice"]
[Date "2022.07.04"]
[Round "4.25"]
[White "Hiermann, Dietmar"]
[Black "Svanda, Adam"]
[Result "1/2-1/2"]
[ECO "B01"]
[WhiteElo "2224"]
[BlackElo "1918"]
[Annotator "RC"]
[PlyCount "187"]
[EventDate "2022.07.01"]
[EventType "swiss"]
[EventCountry "CZE"]
[SourceTitle "playchess.com"]
[Source "ChessBase"]
[SourceQuality "1"]
[TimeControl "40/5400+30:1800+30"]

1. e4 {[%emt 0:00:07]} d5 {[%emt 0:00:22]} 2. exd5 {[%emt 0:00:02]} Qxd5 {[%emt 0:00:07]} 3. Nc3 {[%emt 0:00:04]} Qd6 {[%emt 0:00:05]} 4. d4 {[%emt 0:00:06]} Nf6 {[%emt 0:00:05]} 5. Nf3 {[%emt 0:00:05]} a6 {[%emt 0:00:34]} 6. g3 {[%emt 0:00:38]} Bg4 {[%emt 0:00:49]} 7. Bg2 {[%emt 0:00:58]} Nc6 {[%emt 0:01:38]} 8. Bf4 {[%emt 0:01:28]} Qb4 {[%emt 0:01:11]} 9. O-O {[%emt 0:05:11]} O-O-O {[%emt 0:02:46]} 10. Ne2 {[%emt 0:02:32]} Bxf3 {[%emt 0:17:14]} 11. Bxf3 {[%emt 0:00:12]} Nxd4 {[%emt 0:00:10]} 12. Nxd4 {[%emt 0:00:08]} Rxd4 {[%emt 0:00:22]} 13. Qc1 {[%emt 0:05:36]} Rxf4 {[%emt 0:00:36]} 14. a3 {[%emt 0:04:27]} Qa4 {[%emt 0:02:31]} 15. b3 {[%emt 0:03:27]} Qd4 {[%emt 0:00:10]} 16. c3 {[%emt 0:00:15]} Qe5 {[%emt 0:00:56]} 17. gxf4 {[%emt 0:01:55]} Qf5 {[%emt 0:00:50]} 18. Qe3 {[%emt 0:03:27]} e6 {[%emt 0:05:17]} 19. Qa7 {[%emt 0:05:27]} c6 {[%emt 0:01:58]} 20. Rfd1 {[%emt 0:02:10]} Kc7 {[%emt 0:04:49]} 21. Qd4 {[%emt 0:03:51]} Bc5 {[%emt 0:01:30]} 22. Qe5+ {[%emt 0:02:25]} Qxe5 {[%emt 0:15:32]} 23. fxe5 {[%emt 0:00:29]} Nd7 {[%emt 0:00:24]} 24. Re1 {[%emt 0:00:14]} Rd8 {[%emt 0:01:16]} 25. b4 {[%emt 0:08:12]} Be7 {[%emt 0:01:33]} 26. Rad1 {[%emt 0:02:55]} g6 {[%emt 0:05:58]} 27. Re4 {[%emt 0:02:01]} h5 {[%emt 0:00:47]} 28. Be2 {[%emt 0:02:59]} Bg5 {[%emt 0:01:34]} 29. f4 {[%emt 0:03:09]} Bh6 {[%emt 0:00:08]} 30. Kf2 {[%emt 0:03:04]} Bf8 {[%emt 0:00:25]} 31. Red4 {[%emt 0:04:11]} Be7 {[%emt 0:01:16]} 32. Ke3 {[%emt 0:03:17]} Bf8 {[%emt 0:02:03]} 33. Ke4 {[%emt 0:01:59]} Be7 {[%emt 0:01:04]} 34. h3 {[%emt 0:00:21]} Kc8 {[%emt 0:01:17]} 35. R4d2 {[%emt 0:00:33]} Kc7 {[%emt 0:01:04]} 36. Kf3 {[%emt 0:11:43]} Bf8 {[%emt 0:00:37]} 37. a4 {[%emt 0:02:26]} Be7 {[%emt 0:01:17]} 38. b5 {[%emt 0:03:53]} a5 {[%emt 0:01:01]} 39. bxc6 {[%emt 0:00:48]} bxc6 {[%emt 0:00:09]} 40. Rb2 {[%emt 0:02:33]} Nc5 {[%emt 0:00:57]} 41. Rd4 {[%emt 0:38:32]} Rd7 {[%emt 0:32:16]} 42. Rxd7+ {[%emt 0:00:00]} Nxd7 {[%emt 0:00:00]} 43. Bd1 {[%emt 0:00:00]} Nc5 {[%emt 0:00:00]} 44. Bc2 {[%emt 0:00:00]} Bd8 {[%emt 0:00:00]} 45. Rb1 {[%emt 0:00:00]} Nd7 {[%emt 0:00:00]} 46. Ke4 {[%emt 0:00:00]} Be7 {[%emt 0:00:00]} 47. Rf1 {[%emt 0:00:00]} Bf8 {[%emt 0:00:00]} 48. Rf3 {[%emt 0:00:00]} Be7 {[%emt 0:00:00]} 49. Rg3 {[%emt 0:00:00]} Kc8 {[%emt 0:00:00]} 50. Rg2 {[%emt 0:00:00]} Kc7 {[%emt 0:00:00]} 51. Kd4 {[%emt 0:00:00]} Nf8 {[%emt 0:00:00]} 52. Ke3 {[%emt 0:00:00]} Bc5+ {[%emt 0:00:00]} 53. Kd3 {[%emt 0:00:00]} Be7 {[%emt 0:00:00]} 54. Ke3 {[%emt 0:00:00]} Bc5+ {[%emt 0:00:00]} 55. Ke2 {[%emt 0:00:00]} Be7 {[%emt 0:00:00]} 56. Kd2 {[%emt 0:00:00]} Kd7 {[%emt 0:00:00]} 57. Bd3 {[%emt 0:00:00]} Kd8 {[%emt 0:00:00]} 58. Kd1 {[%emt 0:01:40]} Kc7 {[%emt 0:00:00]} 59. Ba6 {[%emt 0:03:22]} Nd7 {[%emt 0:00:00]} 60. Bd3 {[%emt 0:01:05]} Nf8 {[%emt 0:00:00]} 61. Kc1 {[%emt 0:03:02]} Ba3+ {[%emt 0:00:00]} 62. Kd2 {[%emt 0:00:15]} Be7 {[%emt 0:00:00]} 63. f5 {[%emt 0:00:11]} exf5 {[%emt 0:00:00]} 64. Bc4 {[%emt 0:00:13]} Nd7 {[%emt 0:06:28]} 65. Bxf7 {[%emt 0:00:22]} Nxe5 {[%emt 0:00:10]} 66. Bxg6 {[%emt 0:00:10]} Nf3+ {[%emt 0:02:59]} 67. Ke2 {[%emt 0:00:09]} Nh4 {[%emt 0:00:06]} 68. Rg1 {[%emt 0:00:22]} Bc5 {[%emt 0:00:42]} 69. Rg5 {[%emt 0:00:22]} Be7 {[%emt 0:00:14]} 70. Rxh5 {[%emt 0:01:16]} Nxg6 {[%emt 0:00:06]} 71. Rxf5 {[%emt 0:00:04]} c5 {[%emt 0:00:24]} 72. Kd3 {[%emt 0:01:14]} Kc6 {[%emt 0:02:03]} 73. Ke4 {[%emt 0:00:59]} Kd6 {[%emt 0:06:08]} 74. Rh5 {[%emt 0:03:07]} Ke6 {[%emt 0:00:12]} 75. Rh6 {[%emt 0:00:35]} Kf6 {[%emt 0:00:08]} 76. Rh7 {[%emt 0:00:20]} Ke6 {[%emt 0:00:18]} 77. Kd3 {[%emt 0:00:24]} Ne5+ {[%emt 0:01:15]} 78. Ke3 {[%emt 0:00:02]} Nc4+ {[%emt 0:08:23]} 79. Ke4 {[%emt 0:00:02]} Nb2 {[%emt 0:00:25]} 80. h4 {[%emt 0:00:21]} Nxa4 {[%emt 0:00:25]} 81. Kd3 {[%emt 0:02:08]} Bf6 {[%emt 0:00:57]} 82. Kc4 {[%emt 0:00:06]} Nb2+ {[%emt 0:05:41]} 83. Kb3 {[%emt 0:00:55]} Nd1 {[%emt 0:00:30]} 84. c4 {[%emt 0:00:08]} Ne3 {[%emt 0:00:47]} 85. Ra7 {[%emt 0:01:08]} Bxh4 {[%emt 0:00:47]} 86. Rxa5 {[%emt 0:00:03]} Be7 {[%emt 0:00:35]} 87. Kc3 {[%emt 0:00:14]} Bf6+ {[%emt 0:00:29]} 88. Kd3 {[%emt 0:00:11]} Bd4 {[%emt 0:00:06]} 89. Ra8 {[%emt 0:00:18]} Kf5 {[%emt 0:00:42]} 90. Re8 {[%emt 0:00:17]} Kf4 {[%emt 0:00:08]} 91. Re4+ {[%emt 0:00:34]} Kf3 {[%emt 0:00:12]} 92. Rxd4 {[%emt 0:00:09]} cxd4 {[%emt 0:00:12]} 93. Kxd4 {[%emt 0:00:14]} Nxc4 {[%emt 0:00:21]} 94. Kxc4 {[%emt 0:00:09]} 1/2-1/2

[Event "FIDE CB Open 2022"]
[Site "Ceske Budejovice"]
[Date "2022.07.04"]
[Round "4.26"]
[White "Saravanan Durga"]
[Black "Koch-Muller, Oscar"]
[Result "0-1"]
[ECO "E51"]
[WhiteElo "1908"]
[BlackElo "2115"]
[Annotator "RC"]
[PlyCount "83"]
[EventDate "2022.07.01"]
[EventType "swiss"]
[EventCountry "CZE"]
[SourceTitle "playchess.com"]
[Source "ChessBase"]
[SourceQuality "1"]
[TimeControl "40/5400+30:1800+30"]

1. d4 {[%emt 0:00:04]} Nf6 {[%emt 0:00:11]} 2. c4 {[%emt 0:00:16]} e6 {[%emt 0:00:04]} 3. Nc3 {[%emt 0:00:10]} Bb4 {[%emt 0:00:03]} 4. e3 {[%emt 0:00:05]} O-O {[%emt 0:00:36]} 5. Bd3 {[%emt 0:00:32]} d5 {[%emt 0:00:49]} 6. Nf3 {[%emt 0:00:07]} dxc4 {[%emt 0:02:02]} 7. Bxc4 {[%emt 0:00:07]} b6 {[%emt 0:02:38]} 8. O-O {[%emt 0:11:04]} Bb7 {[%emt 0:02:43]} 9. Qe2 {[%emt 0:10:10]} Nbd7 {[%emt 0:11:51]} 10. Rd1 {[%emt 0:06:09]} Qe7 {[%emt 0:07:55]} 11. Nb5 {[%emt 0:08:24]} c6 {[%emt 0:16:34]} 12. Nc7 {[%emt 0:10:53]} Rac8 {[%emt 0:00:17]} 13. Na6 {[%emt 0:00:09]} Bd6 {[%emt 0:04:14]} 14. a4 {[%emt 0:05:22]} e5 {[%emt 0:03:38]} 15. e4 {[%emt 0:19:58]} exd4 {[%emt 0:03:37]} 16. Nxd4 {[%emt 0:01:42]} g6 {[%emt 0:10:53]} 17. f3 {[%emt 0:05:19]} Rfe8 {[%emt 0:03:02]} 18. Be3 {[%emt 0:06:29]} Qe5 {[%emt 0:05:33]} 19. g3 {[%emt 0:03:31]} Bf8 {[%emt 0:02:28]} 20. Bf4 {[%emt 0:01:26]} Qe7 {[%emt 0:00:49]} 21. Nc7 {[%emt 0:01:39]} Red8 {[%emt 0:02:33]} 22. Ba6 {[%emt 0:06:44]} Nc5 {[%emt 0:09:46]} 23. Bxb7 {[%emt 0:00:27]} Nxb7 {[%emt 0:00:10]} 24. Na6 {[%emt 0:00:56]} Bg7 {[%emt 0:01:00]} 25. Be3 {[%emt 0:00:38]} h5 {[%emt 0:01:22]} 26. Rac1 {[%emt 0:00:07]} c5 {[%emt 0:02:39]} 27. Nb5 {[%emt 0:00:05]} Na5 {[%emt 0:00:15]} 28. Rxd8+ {[%emt 0:00:21]} Rxd8 {[%emt 0:00:34]} 29. Na3 {[%emt 0:01:23]} Qd7 {[%emt 0:01:23]} 30. Qc2 {[%emt 0:00:31]} Nc6 {[%emt 0:00:33]} 31. Qe2 {[%emt 0:00:34]} Ne8 {[%emt 0:01:18]} 32. Kg2 {[%emt 0:00:31]} h4 {[%emt 0:00:29]} 33. Qc4 {[%emt 0:00:25]} h3+ {[%emt 0:00:13]} 34. Kf1 {[%emt 0:00:10]} Bxb2 {[%emt 0:00:59]} 35. Nb5 {[%emt 0:00:55]} Bxc1 {[%emt 0:00:14]} 36. Qxc1 {[%emt 0:00:24]} Qd1+ {[%emt 0:00:42]} 37. Qxd1 {[%emt 0:00:25]} Rxd1+ {[%emt 0:00:01]} 38. Kf2 {[%emt 0:00:38]} Rh1 {[%emt 0:00:17]} 39. g4 {[%emt 0:00:08]} Rxh2+ {[%emt 0:00:17]} 40. Kg3 {[%emt 0:00:03]} Rh1 {[%emt 0:01:13]} 41. Bf4 {[%emt 0:30:50]} Nd4 {[%emt 0:31:37]} 42. e5 {[%emt 0:00:00]} 0-1

[Event "FIDE CB Open 2022"]
[Site "Ceske Budejovice"]
[Date "2022.07.04"]
[Round "4.27"]
[White "Prazak, Daniel"]
[Black "Zaza, Martin"]
[Result "1-0"]
[ECO "B29"]
[WhiteElo "2113"]
[BlackElo "1911"]
[Annotator "NA RC"]
[PlyCount "45"]
[EventDate "2022.07.01"]
[EventType "swiss"]
[EventCountry "CZE"]
[SourceTitle "playchess.com"]
[Source "ChessBase"]
[SourceQuality "1"]
[TimeControl "40/5400+30:1800+30"]

1. Nf3 {[%emt 0:00:04]} c5 {[%emt 0:00:43]} 2. e4 {[%emt 0:00:37]} Nf6 {[%emt 0:00:05]} 3. e5 {[%emt 0:00:17]} Nd5 {[%emt 0:00:04]} 4. Nc3 {[%emt 0:00:08]} e6 {[%emt 0:00:05]} 5. Nxd5 {[%emt 0:00:26]} exd5 {[%emt 0:00:07]} 6. d4 {[%emt 0:01:32]} d6 {[%emt 0:00:42]} 7. exd6 {[%emt 0:02:10]} Bxd6 {[%emt 0:00:08]} 8. dxc5 {[%emt 0:09:52]} Bxc5 {[%emt 0:00:30]} 9. Be2 {[%emt 0:01:12]} O-O {[%emt 0:00:25]} 10. O-O {[%emt 0:00:38]} Nc6 {[%emt 0:00:05]} 11. a3 {[%emt 0:01:16]} a5 {[%emt 0:04:52]} 12. b3 {[%emt 0:06:24]} d4 {[%emt 0:04:17]} 13. Bb2 {[%emt 0:02:04]} Qf6 {[%emt 0:00:09]} 14. h3 {[%emt 0:03:06]} Rd8 {[%emt 0:00:24]} 15. Bd3 {[%emt 0:03:43]} Ne5 {[%emt 0:02:03]} 16. Nxe5 {[%emt 0:02:37]} Qxe5 {[%emt 0:00:40]} 17. Re1 {[%emt 0:00:26]} Qg5 {[%emt 0:00:28]} 18. Bc1 {[%emt 0:05:04]} Qf6 {[%emt 0:00:23]} 19. Qh5 {[%emt 0:01:18]} Bf5 {[%emt 0:09:19]} 20. Qxf5 {[%emt 0:02:26]} Qxf5 {[%emt 0:00:05]} 21. Bxf5 {[%emt 0:00:16]} d3 {[%emt 0:00:18]} 22. Bxd3 {[%emt 0:00:19]} Rd6 {[%emt 0:00:06]} 23. Be3 {[%emt 0:00:17]} 1-0